fUSD/lending_fUSD_20251224
["ID","MTS","AMOUNT","RATE_DAILY","PERIOD"]
[399619004,1766551840903,-500.0,0.00016999,2]
[399619005,1766551841963,-500.0,0.00016999,2]
[399619006,1766551842006,-500.0,0.00016999,2]
[399619007,1766551842024,-547.42979999,0.00016999,2]
[399619008,1766551842034,-300.0,0.00016999,2]
[399619009,1766551842044,-500.0,0.00016999,2]
[399619010,1766551842054,-500.0,0.00016999,2]
[399619011,1766551842064,-500.0,0.00016999,2]
[399619012,1766551842075,-500.0,0.00016999,2]
[399619013,1766551842084,-326.94,0.00016999,2]
[399619014,1766551842094,-300.0,0.00016999,2]
[399619015,1766551842104,-666.0,0.00016999,2]
[399619016,1766551842113,-2367494.21390869,0.00017,2]
[399619017,1766551842126,-725.91164319,0.00017,2]
[399619018,1766551842138,-324.4526,0.00017,2]
[399619019,1766551842154,-860703.62453583,0.00017,2]
[399619020,1766551842163,-3947868.3357553,0.00017,2]
[399619021,1766551842175,-144444.48410535,0.00017,2]
[399619026,1766551844218,-4228.68370481,0.0001684,2]
[399619027,1766551844229,-10995.86476063,0.00017,2]
[399619028,1766551844274,-507.24097996,0.00017,2]
[399619029,1766551844332,-313717.5829489,0.00017,2]
[399619045,1766551846100,-87120.868877,0.00017,2]
[399619048,1766551846156,-68565.51761213,0.00017,2]
[399619049,1766551846377,-360.97554134,0.00017,2]
[399619058,1766552033497,-437.14765558,0.00015173,2]
[399619059,1766552033523,-161.54315635,0.0001656,2]
[399619060,1766552033548,-166.42736222,0.0001656,2]
[399619061,1766552033572,-300.0,0.00016588,2]
[399619062,1766552033596,-385.0,0.00016588,2]
[399619063,1766552033625,-89847.88182585,0.00016589,2]
[399619064,1766552039372,-50000.0,0.00016589,2]
[399619065,1766552039957,-50000.0,0.00016589,2]
[399619070,1766552554993,1454.33,0.00022,30]
[399619071,1766552732909,-479.841468,0.00015096,2]
[399619072,1766552765254,9040.327064,0.00015,2]
[399619073,1766552765278,959.672936,0.00015,2]
[399619074,1766553004198,-417.99683017,0.00015173,2]
[399619075,1766553004226,-600.0,0.00015173,2]
[399619076,1766553004251,-2500.0,0.00015173,2]
[399619077,1766553004275,-195.0,0.00015173,2]
[399619078,1766553004297,-300.0,0.00015173,2]
[399619079,1766553004327,-276.0,0.00015173,2]
[399619080,1766553004350,-600.0,0.00015174,2]
[399619081,1766553004375,-670.40341196,0.00015174,2]
[399619082,1766553004401,-1200.0,0.0001518,2]
[399619083,1766553004424,-2500.0,0.00015181,2]
[399619084,1766553004450,-300.0,0.00015222,2]
[399619085,1766553004475,-300.0,0.00015222,2]
[399619086,1766553004501,-1200.0,0.00015223,2]
[399619087,1766553004525,-300.0,0.00015225,2]
[399619088,1766553004549,-304.50154706,0.00015225,2]
[399619089,1766553004573,-200.0,0.00015475,2]
[399619090,1766553032354,-0.86422353,0.00015749,2]
[399619091,1766553032379,-5569.82902229,0.00015749,2]
[399619092,1766553032391,-704.890961,0.00015749,2]
[399619093,1766553032403,-593.68559843,0.00015749,2]
[399619094,1766553032433,-4131.00019475,0.00015749,2]
[399619095,1766553032443,-16655.17408242,0.000159,2]
[399619096,1766553032454,-259.11,0.000159,2]
[399619103,1766553038344,-500.0,0.00015899,2]
[399619104,1766553038354,-325.13,0.00015899,2]
[399619105,1766553038506,-174.87,0.00015899,2]
[399619106,1766553038516,-419.14134138,0.00015899,2]
[399619108,1766553040382,-84.28416947,0.00015899,2]
[399619109,1766553040393,-500.0,0.00015899,2]
[399619110,1766553040404,-360.26347661,0.00015899,2]
[399619111,1766553040437,-139.73652339,0.00015899,2]
[399619112,1766553040447,-184.33885305,0.00015899,2]
[399619113,1766553040457,-500.0,0.00015899,2]
[399619114,1766553040467,-500.0,0.00015899,2]
[399619115,1766553040477,-500.0,0.00015899,2]
[399619116,1766553040486,-426.36822927,0.00015899,2]
[399619117,1766553040546,-73.63177073,0.00015899,2]
[399619118,1766553040556,-500.0,0.00015899,2]
[399619119,1766553040572,-500.0,0.00015899,2]
[399619120,1766553040583,-500.0,0.00015899,2]
[399619121,1766553040593,-500.0,0.00015899,2]
[399619122,1766553040604,-441.72819276,0.00015899,2]
[399619123,1766553040615,-500.0,0.00015899,2]
[399619124,1766553040626,-500.0,0.00015899,2]
[399619125,1766553040636,-500.0,0.00015899,2]
[399619126,1766553040647,-500.0,0.00015899,2]
[399619127,1766553040657,-495.36453673,0.00015899,2]
[399619128,1766553040683,-4.63546327,0.00015899,2]
[399619129,1766553040693,-500.0,0.00015899,2]
[399619130,1766553040704,-500.0,0.00015899,2]
[399619131,1766553040714,-500.0,0.00015899,2]
[399619132,1766553040725,-406.78635837,0.00015899,2]
[399619133,1766553040735,-500.0,0.00015899,2]
[399619134,1766553040745,-500.0,0.00015899,2]
[399619135,1766553040755,-500.0,0.00015899,2]
[399619136,1766553040765,-500.0,0.00015899,2]
[399619137,1766553040776,-500.0,0.00015899,2]
[399619138,1766553040786,-500.0,0.00015899,2]
[399619139,1766553040796,-500.0,0.00015899,2]
[399619140,1766553040806,-500.0,0.00015899,2]
[399619141,1766553040817,-500.0,0.00015899,2]
[399619142,1766553040827,-500.0,0.00015899,2]
[399619143,1766553040838,-500.0,0.00015899,2]
[399619144,1766553040847,-500.0,0.00015899,2]
[399619145,1766553040857,-500.0,0.00015899,2]
[399619146,1766553040867,-500.0,0.00015899,2]
[399619147,1766553040878,-500.0,0.00015899,2]
[399619148,1766553040888,-500.0,0.00015899,2]
[399619149,1766553040899,-500.0,0.00015899,2]
[399619150,1766553040908,-500.0,0.00015899,2]
[399619151,1766553040918,-500.0,0.00015899,2]
[399619152,1766553040928,-500.0,0.00015899,2]
[399619153,1766553040943,-500.0,0.00015899,2]
[399619154,1766553040953,-500.0,0.00015899,2]
[399619155,1766553040964,-500.0,0.00015899,2]
[399619156,1766553040974,-500.0,0.00015899,2]
[399619157,1766553040985,-500.0,0.00015899,2]
[399619158,1766553040995,-500.0,0.00015899,2]
[399619159,1766553041005,-845792.20271419,0.000159,2]
[399619160,1766553041026,-71997.76430149,0.000159,2]
[399619161,1766553041038,-18572.12617691,0.000159,2]
[399619162,1766553041049,-8374.38001499,0.000159,2]
[399619164,1766553043418,-38349.24271,0.000159,2]
[399619165,1766553043428,-2299.99999802,0.00016,2]
[399619166,1766553043438,-1127.55,0.00016273,2]
[399619167,1766553043448,-208.42,0.0001636,3]
[399619168,1766553043458,-10078.3607,0.00016489,2]
[399619169,1766553043474,-540.31512464,0.0001649,2]
[399619170,1766553043485,-4422.11791847,0.00016551,2]
[399619171,1766553043495,-161.54315634,0.00016561,2]
[399619172,1766553043505,-565.224,0.00016562,2]
[399619173,1766553043515,-160.631,0.00016562,2]
[399619174,1766553043525,-550.0,0.00016586,2]
[399619175,1766553043535,-27591.04624507,0.00016587,2]
[399619176,1766553043545,-500.0,0.00016588,2]
[399619177,1766553043555,-341.16073738,0.00016588,2]
[399619178,1766553043565,-898.08433789,0.00016588,2]
[399619179,1766553043575,-178.40612798,0.00016588,2]
[399619180,1766553043631,-3870.15651308,0.00016588,2]
[399619181,1766553043641,-279.50214594,0.00016588,2]
[399619182,1766553043651,-516.96732434,0.00016588,2]
[399619183,1766553043662,-510.57439861,0.00016588,2]
[399619184,1766553043672,-523.161146,0.00016588,2]
[399619185,1766553043681,-449.22943746,0.00016588,2]
[399619186,1766553043691,-508.89746459,0.00016588,2]
[399619187,1766553043701,-269.19,0.00016588,2]
[399619188,1766553043711,-420.0,0.00016656,2]
[399619189,1766553043721,-420.0,0.00016656,2]
[399619190,1766553043731,-151.0,0.00016668,2]
[399619191,1766553043741,-195.0,0.0001669,2]
[399619192,1766553043751,-300.0,0.0001669,2]
[399619193,1766553043762,-2500.0,0.0001669,2]
[399619194,1766553043772,-2500.0,0.0001669,2]
[399619195,1766553043781,-250.0,0.0001669,2]
[399619196,1766553043792,-600.0,0.0001669,2]
[399619197,1766553043802,-1865.35,0.00016691,2]
[399619198,1766553043811,-1149.55619546,0.00016695,2]
[399619199,1766553043836,-530.44380454,0.00016695,2]
[399619200,1766553043846,-1000.0,0.000167,2]
[399619201,1766553043860,-260.65659396,0.00016862,2]
[399619202,1766553043873,-8.53340604,0.00016862,2]
[399619203,1766553043882,-376.46259396,0.00016959,2]
[399619204,1766553043980,-29.18407384,0.00016959,2]
[399619208,1766553046363,-98.3533322,0.00016959,2]
[399619210,1766553046373,-486.95856001,0.00016989,2]
[399619211,1766553046383,-577.99205574,0.0001699,2]
[399619212,1766553046419,-926.14285031,0.0001699,2]
[399619213,1766553046432,-538.9811538,0.0001699,2]
[399619214,1766553046444,-598.44994,0.0001699,2]
[399619215,1766553046690,-3644.00857318,0.0001699,2]
[399619216,1766553046747,-86093.0886758,0.0001699,2]
[399619217,1766553116344,202.54,0.000226,120]
[399619218,1766553496633,10000.0,0.000226,120]
[399619219,1766553504284,10000.0,0.000226,120]
[399619220,1766553521370,10000.0,0.000226,120]
[399619221,1766553534226,10000.0,0.00022,30]
[399619222,1766553547865,10000.0,0.00022,30]
[399619223,1766553554329,10000.0,0.000226,120]
[399619224,1766553562830,10000.0,0.00022,30]
[399619225,1766553569835,10000.0,0.000226,120]
[399619226,1766553577784,10000.0,0.000226,120]
[399619227,1766553587422,10000.0,0.000226,120]
[399619229,1766553887640,171.92,0.00013178,2]
[399619231,1766554143778,502.73869828,0.00015173,2]
[399619232,1766554144718,500.0,0.00015173,2]
[399619233,1766554213530,500.0,0.00015173,2]
[399619241,1766554231411,-452.18,0.00015582,2]
[399619244,1766554231422,-9.93065713,0.00015672,2]
[399619245,1766554231435,-156.72934287,0.00015672,2]
[399619246,1766554231445,-472.77573406,0.000157,2]
[399619247,1766554231456,-333.69432308,0.00015721,2]
[399619248,1766554231468,-467.45030931,0.00015721,2]
[399619249,1766554231480,-172.98311905,0.00015721,2]
[399619250,1766554231490,-243.98688113,0.00015721,2]
[399619251,1766554231502,-404.53844161,0.00015721,2]
[399619252,1766554231534,-351.47467726,0.00015721,2]
[399619253,1766554231545,-224.14717714,0.00015798,2]
[399619254,1766554231560,-446.99893371,0.00015798,2]
[399619255,1766554231593,-434.30330845,0.00015798,2]
[399619256,1766554231605,-94.5505807,0.00015798,2]
[399619257,1766554231617,-260.080731,0.00015798,2]
[399619258,1766554231630,-39.919269,0.00015798,2]
[399619259,1766554231640,-1200.0,0.00015798,2]
[399619260,1766554231651,-300.0,0.00015798,2]
[399619262,1766554231660,-319047.44763543,0.00015799,2]
[399619263,1766554231673,-34375.3682467,0.00015799,2]
[399619268,1766554237455,-500.0,0.00015798,2]
[399619269,1766554237467,-353.81542812,0.00015798,2]
[399619270,1766554237479,-500.0,0.00015798,2]
[399619271,1766554237492,-500.0,0.00015798,2]
[399619272,1766554237504,-500.0,0.00015798,2]
[399619273,1766554237520,-500.0,0.00015798,2]
[399619274,1766554237532,-500.0,0.00015798,2]
[399619275,1766554237545,-500.0,0.00015798,2]
[399619276,1766554237558,-500.0,0.00015798,2]
[399619277,1766554237570,-500.0,0.00015798,2]
[399619278,1766554237582,-500.0,0.00015798,2]
[399619279,1766554237595,-500.0,0.00015798,2]
[399619280,1766554237607,-500.0,0.00015798,2]
[399619281,1766554237619,-500.0,0.00015798,2]
[399619282,1766554237631,-540.67863584,0.00015798,2]
[399619283,1766554237644,-500.0,0.00015798,2]
[399619284,1766554237656,-500.0,0.00015798,2]
[399619285,1766554237668,-500.0,0.00015798,2]
[399619286,1766554237679,-500.0,0.00015798,2]
[399619287,1766554237691,-500.0,0.00015798,2]
[399619288,1766554237703,-500.0,0.00015798,2]
[399619289,1766554237715,-500.0,0.00015798,2]
[399619290,1766554237732,-500.0,0.00015798,2]
[399619291,1766554237745,-646577.18411787,0.00015799,2]
[399619292,1766554237757,-566.26698346,0.000158,2]
[399619293,1766554237770,-6248.86804348,0.000158,2]
[399619294,1766554237782,-619.83449192,0.000158,2]
[399619295,1766554237794,-2500.0,0.000158,2]
[399619297,1766554237807,-151.0,0.0001589,2]
[399619299,1766554237819,-151.0,0.0001589,2]
[399619302,1766554237832,-151.0,0.0001589,2]
[399619304,1766554237844,-151.0,0.0001589,2]
[399619306,1766554237856,-151.0,0.0001589,2]
[399619308,1766554237869,-151.0,0.0001589,2]
[399619311,1766554237882,-151.0,0.0001589,2]
[399619313,1766554237894,-151.0,0.0001589,2]
[399619315,1766554237906,-151.0,0.0001589,2]
[399619319,1766554237918,-151.0,0.0001589,2]
[399619322,1766554237931,-151.0,0.0001589,2]
[399619324,1766554237943,-151.0,0.0001589,2]
[399619327,1766554237955,-151.0,0.0001589,2]
[399619329,1766554237968,-151.0,0.0001589,2]
[399619331,1766554237980,-151.0,0.0001589,2]
[399619333,1766554237993,-151.0,0.0001589,2]
[399619336,1766554238006,-269.19,0.00015899,2]
[399619338,1766554238018,-7258.30101545,0.00015899,2]
[399619340,1766554238030,-188.4651769,0.00015899,2]
[399619342,1766554238042,-500.0,0.00015899,2]
[399619344,1766554238054,-500.0,0.00015899,2]
[399619347,1766554238070,-500.0,0.00015899,2]
[399619349,1766554238082,-500.0,0.00015899,2]
[399619351,1766554238094,-500.0,0.00015899,2]
[399619354,1766554238107,-194.84476554,0.00015899,2]
[399619356,1766554238120,-166.0,0.000159,2]
[399619358,1766554238132,-166.0,0.000159,2]
[399619361,1766554238146,-6248.86804339,0.00015922,2]
[399619363,1766554238159,-566.2669834,0.00015924,2]
[399619365,1766554238172,-166.66,0.00016002,2]
[399619368,1766554238184,-6248.86804339,0.00016044,2]
[399619370,1766554238197,-566.2669834,0.00016048,2]
[399619372,1766554238209,-619.83449191,0.00016153,2]
[399619374,1766554238221,-6248.86804339,0.00016167,2]
[399619377,1766554238234,-566.2669834,0.00016173,2]
[399619379,1766554238246,-269.19,0.00016173,2]
[399619381,1766554238260,-166.42736222,0.00016189,2]
[399619383,1766554238272,-6248.86804339,0.00016289,2]
[399619386,1766554238285,-566.2669834,0.00016297,2]
[399619388,1766554238297,-166.66,0.00016332,2]
[399619390,1766554238309,-6248.86804339,0.00016411,2]
[399619392,1766554238320,-566.2669834,0.00016421,2]
[399619394,1766554238332,-167.33,0.00016437,2]
[399619397,1766554238344,-500.0,0.00016438,2]
[399619399,1766554238358,-500.0,0.00016438,2]
[399619401,1766554238369,-500.0,0.00016438,2]
[399619403,1766554238381,-500.0,0.00016438,2]
[399619405,1766554238393,-500.0,0.00016438,2]
[399619408,1766554238405,-500.0,0.00016438,2]
[399619410,1766554238419,-500.0,0.00016438,2]
[399619412,1766554238432,-500.0,0.00016438,2]
[399619415,1766554238445,-500.0,0.00016438,2]
[399619417,1766554238458,-500.0,0.00016438,2]
[399619419,1766554238470,-500.0,0.00016438,2]
[399619421,1766554238481,-500.0,0.00016438,2]
[399619423,1766554238493,-500.0,0.00016438,2]
[399619426,1766554238505,-500.0,0.00016438,2]
[399619428,1766554238520,-500.0,0.00016438,2]
[399619430,1766554238532,-500.0,0.00016438,2]
[399619432,1766554238544,-500.0,0.00016438,2]
[399619434,1766554238557,-500.0,0.00016438,2]
[399619437,1766554238569,-500.0,0.00016438,2]
[399619439,1766554238582,-500.0,0.00016438,2]
[399619441,1766554238594,-500.0,0.00016438,2]
[399619443,1766554238606,-500.0,0.00016438,2]
[399619445,1766554238619,-500.0,0.00016438,2]
[399619448,1766554238631,-500.0,0.00016438,2]
[399619450,1766554238643,-500.0,0.00016438,2]
[399619452,1766554238656,-500.0,0.00016438,2]
[399619454,1766554238668,-500.0,0.00016438,2]
[399619457,1766554238680,-500.0,0.00016438,2]
[399619459,1766554238692,-500.0,0.00016438,2]
[399619461,1766554238704,-500.0,0.00016438,2]
[399619464,1766554238717,-500.0,0.00016438,2]
[399619466,1766554238729,-395.3445893,0.00016438,2]
[399619468,1766554238740,-500.0,0.00016438,2]
[399619470,1766554238751,-500.0,0.00016438,2]
[399619473,1766554238764,-500.0,0.00016438,2]
[399619475,1766554238776,-500.0,0.00016438,2]
[399619477,1766554238788,-500.0,0.00016438,2]
[399619480,1766554238813,-500.0,0.00016438,2]
[399619483,1766554238827,-500.0,0.00016438,2]
[399619485,1766554238840,-500.0,0.00016438,2]
[399619488,1766554238853,-500.0,0.00016438,2]
[399619490,1766554238866,-500.0,0.00016438,2]
[399619492,1766554238879,-500.0,0.00016438,2]
[399619494,1766554238892,-500.0,0.00016438,2]
[399619497,1766554238905,-500.0,0.00016438,2]
[399619499,1766554238917,-500.0,0.00016438,2]
[399619501,1766554238931,-500.0,0.00016438,2]
[399619503,1766554238943,-500.0,0.00016438,2]
[399619506,1766554238956,-500.0,0.00016438,2]
[399619508,1766554238967,-500.0,0.00016438,2]
[399619510,1766554238979,-500.0,0.00016438,2]
[399619512,1766554238993,-5776.68,0.00016438,2]
[399619515,1766554239007,-269.21,0.00016447,2]
[399619517,1766554239019,-1000.0,0.00016489,2]
[399619519,1766554239031,-166.0,0.000165,2]
[399619521,1766554239044,-166.0,0.000165,2]
[399619524,1766554239057,-619.83449191,0.00016505,2]
[399619526,1766554239069,-6248.86804339,0.00016533,2]
[399619528,1766554239081,-566.2669834,0.00016545,2]
[399619530,1766554239093,-776.96324398,0.00016595,2]
[399619532,1766554239105,-500.0,0.00016603,2]
[399619535,1766554239118,-500.0,0.00016603,2]
[399619537,1766554239131,-490.87099201,0.00016604,2]
[399619539,1766554239143,-194.46799567,0.00016604,2]
[399619542,1766554239155,-206.68233506,0.00016604,2]
[399619544,1766554239168,-1244.21357412,0.00016604,5]
[399619546,1766554239180,-319.7217302,0.00016605,2]
[399619548,1766554239192,-78159.9905696,0.00016605,2]
[399619551,1766554239206,-3580.3495656,0.00016605,2]
[399619553,1766554239218,-382507.7438551,0.00016605,2]
[399619555,1766554239230,-3222.0043084,0.00016605,2]
[399619558,1766554239244,-195162.9486891,0.00016605,2]
[399619560,1766554239256,-3072.3204852,0.00016605,2]
[399619562,1766554239268,-677.91,0.00016648,2]
[399619564,1766554239280,-6248.86804339,0.00016656,2]
[399619567,1766554239293,-166.66,0.00016662,2]
[399619569,1766554239305,-566.2669834,0.0001667,2]
[399619571,1766554239316,-501.02283993,0.00016702,2]
[399619573,1766554239331,-6248.86804339,0.00016778,2]
[399619576,1766554239343,-201.47691223,0.0001679,2]
[399619578,1766554239354,-566.2669834,0.00016794,2]
[399619580,1766554239365,-167.15,0.00016807,2]
[399619582,1766554239377,-12036.11954425,0.00016892,2]
[399619584,1766554239389,-166.0,0.000169,2]
[399619585,1766554239400,-166.0,0.000169,2]
[399619586,1766554239412,-505.50581439,0.000169,2]
[399619587,1766554239424,-1011.73322454,0.000169,2]
[399619588,1766554239435,-6248.86804339,0.000169,2]
[399619589,1766554239447,-195.81864308,0.000169,2]
[399619590,1766554239458,-163.0631133,0.000169,2]
[399619591,1766554239470,-194.16693264,0.000169,2]
[399619592,1766554239481,-566.2669834,0.00016918,2]
[399619593,1766554239494,-510.0,0.0001692,2]
[399619594,1766554239505,-150.0,0.00016973,2]
[399619595,1766554239521,-150.0,0.00016973,2]
[399619596,1766554239532,-502.81963475,0.00016973,2]
[399619597,1766554239544,-500.0,0.00016989,2]
[399619598,1766554239556,-776.96324398,0.0001699,2]
[399619599,1766554239568,-776.96324398,0.0001699,2]
[399619600,1766554239579,-166.66,0.00016992,2]
[399619601,1766554239591,-666.0,0.00016999,2]
[399619602,1766554239602,-300.0,0.00016999,2]
[399619603,1766554239613,-1244.21357412,0.00016999,5]
[399619604,1766554239624,-1244.21357413,0.00016999,5]
[399619605,1766554239635,-500.0,0.00016999,2]
[399619606,1766554239647,-300.0,0.00016999,2]
[399619607,1766554239658,-151.0,0.00017,2]
[399619608,1766554239669,-151.49110343,0.00017,2]
[399619609,1766554239682,-250.0,0.00017,2]
[399619610,1766554239693,-2000.0,0.00017,2]
[399619612,1766554239704,-2822274.57726321,0.00017,2]
[399619615,1766554239727,-2286.55317766,0.00017,2]
[399619617,1766554239739,-599.55417068,0.00017,2]
[399619620,1766554239754,-292.45736724,0.00017,2]
[399619622,1766554239769,-611.20545117,0.00017,2]
[399619643,1766554239976,-151.0,0.00016091,2]
[399619645,1766554239987,-989.5982358,0.00017,2]
[399619649,1766554240012,-1820.89468532,0.00017,2]
[399619842,1766554242581,-506.16874635,0.00017,2]
[399619843,1766554242596,-1299.0,0.00017,2]
[399619844,1766554242644,-439.16784143,0.00017,2]
[399619845,1766554245473,-709.01559958,0.00016,2]
[399619846,1766554245484,-1450.56010005,0.00016,2]
[399619847,1766554245533,-78906.17840037,0.00016,2]
[399619848,1766554245543,-89565.03790814,0.00017,2]
[399619849,1766554245554,-86747.91464378,0.00017,2]
[399619850,1766554245656,-533.9999989,0.00017,2]
[399619851,1766554245772,-5823.65458347,0.00017,2]
[399619852,1766554245784,-1536.96432225,0.00017,2]
[399619853,1766554245796,-1063.53697006,0.00017,2]
[399619854,1766554325291,501.47157547,0.00015173,2]
[399619855,1766554336311,500.0,0.00015173,2]
[399619856,1766554345488,526.20131088,0.000176,30]
[399619857,1766554384230,500.0,0.00015173,2]
[399619858,1766554453413,500.0,0.00015173,2]
[399619859,1766554507049,500.0,0.00015173,2]
[399619860,1766554510894,500.0,0.00015173,2]
[399619861,1766554519339,500.0,0.00015173,2]
[399619862,1766554519415,500.0,0.00015173,2]
[399619863,1766554565581,501.3700577,0.00015173,2]
[399619864,1766554630783,500.0,0.00015173,2]
[399619865,1766554637195,500.0,0.00015173,2]
[399619867,1766554878407,234.33716546,0.00015173,2]
[399619868,1766555172585,500.0,0.00015173,2]
[399619869,1766555387387,1000.0,0.000155,2]
[399619870,1766555407534,500.0,0.00015173,2]
[399619877,1766555431563,-539.07428944,0.00015534,2]
[399619878,1766555431621,-2700.92571056,0.00015534,2]
[399619879,1766555431631,-195.0,0.00015534,2]
[399619880,1766555431641,-619.83449192,0.00015598,2]
[399619881,1766555431651,-413.67876732,0.00015598,2]
[399619882,1766555431661,-3672.61,0.00015633,2]
[399619883,1766555431670,-3672.61,0.00015633,2]
[399619884,1766555431679,-151.0,0.0001564,2]
[399619885,1766555431690,-300.0,0.00015642,2]
[399619886,1766555431699,-300.0,0.00015642,2]
[399619887,1766555431710,-1200.0,0.00015642,2]
[399619888,1766555431719,-51559.58279482,0.00015643,2]
[399619889,1766555431731,-940.0,0.00015643,2]
[399619890,1766555431742,-479.3592,0.00015643,2]
[399619891,1766555431762,-351.80482366,0.00015643,2]
[399619892,1766555431778,-945.64432406,0.00015643,2]
[399619909,1766555437703,-872.06,0.00015633,2]
[399619910,1766555437712,-872.06,0.00015633,2]
[399619911,1766555437726,-872.06,0.00015633,2]
[399619912,1766555437744,-682.02270092,0.00015633,2]
[399619913,1766555437761,-190.03729908,0.00015633,2]
[399619914,1766555437770,-872.06,0.00015633,2]
[399619915,1766555437780,-353.81542812,0.00015642,2]
[399619916,1766555437789,-500.0,0.00015642,2]
[399619917,1766555437798,-241.60551601,0.00015642,2]
[399619918,1766555437807,-69.28597991,0.00015642,2]
[399619919,1766555437819,-430.71402009,0.00015642,2]
[399619920,1766555437828,-500.0,0.00015642,2]
[399619921,1766555437838,-500.0,0.00015642,2]
[399619922,1766555437847,-500.0,0.00015642,2]
[399619923,1766555437857,-500.0,0.00015642,2]
[399619924,1766555437867,-500.0,0.00015642,2]
[399619925,1766555437876,-500.0,0.00015642,2]
[399619926,1766555437885,-500.0,0.00015642,2]
[399619927,1766555437895,-379.83790054,0.00015642,2]
[399619928,1766555437903,-500.0,0.00015642,2]
[399619929,1766555437913,-500.0,0.00015642,2]
[399619930,1766555437923,-500.0,0.00015642,2]
[399619931,1766555437934,-500.0,0.00015642,2]
[399619932,1766555437947,-500.0,0.00015642,2]
[399619933,1766555437956,-500.0,0.00015642,2]
[399619934,1766555437965,-500.0,0.00015642,2]
[399619935,1766555437975,-500.0,0.00015642,2]
[399619936,1766555437984,-500.0,0.00015642,2]
[399619937,1766555437994,-500.0,0.00015642,2]
[399619938,1766555438004,-500.0,0.00015642,2]
[399619939,1766555438014,-500.0,0.00015642,2]
[399619941,1766555438023,-500.0,0.00015642,2]
[399619942,1766555438032,-500.0,0.00015642,2]
[399619943,1766555438041,-500.0,0.00015642,2]
[399619945,1766555438051,-500.0,0.00015642,2]
[399619948,1766555438061,-37940.24863276,0.00015643,2]
[399619950,1766555438073,-362.08766944,0.00015643,2]
[399619952,1766555438086,-907421.27255526,0.00015643,2]
[399619953,1766555438096,-433.0,0.00015698,2]
[399619954,1766555438105,-2500.0,0.00015699,2]
[399619955,1766555438114,-300.0,0.00015699,2]
[399619956,1766555438124,-166.42736222,0.000157,2]
[399619957,1766555438132,-6671.73641388,0.000157,2]
[399619958,1766555438142,-1000.0,0.00015721,2]
[399619959,1766555438151,-9951.2,0.00015743,2]
[399619960,1766555438162,-177.788,0.00015743,2]
[399619961,1766555438172,-515.753,0.00015743,2]
[399619962,1766555438182,-626.32,0.00015789,2]
[399619963,1766555438191,-519.59185884,0.00015789,2]
[399619964,1766555438201,-151.0,0.00015789,2]
[399619965,1766555438211,-151.0,0.00015789,2]
[399619966,1766555438220,-151.0,0.00015789,2]
[399619967,1766555438231,-151.0,0.00015789,2]
[399619968,1766555438241,-151.0,0.00015789,2]
[399619969,1766555438251,-151.0,0.00015789,2]
[399619970,1766555438261,-151.0,0.00015789,2]
[399619971,1766555438271,-151.0,0.00015789,2]
[399619972,1766555438281,-151.0,0.00015789,2]
[399619973,1766555438291,-151.0,0.00015789,2]
[399619974,1766555438301,-151.0,0.00015789,2]
[399619975,1766555438311,-151.0,0.00015789,2]
[399619976,1766555438321,-151.0,0.00015789,2]
[399619977,1766555438331,-151.0,0.00015789,2]
[399619978,1766555438341,-151.0,0.00015789,2]